bitfinex-derivatives/quotes_SOLF0:USTF0_20260210
["timestamp","ask_amount","ask_price","bid_price","bid_amount"]
[1770729502704,10.7146,84.075,84.034,12.83145065]
[1770729503103,35.8,84.1,84.034,12.83145065]
[1770729503307,35.8,84.1,83.999,114.74]
[1770729503308,35.73,84.124,84.06,12.83145065]
[1770729503504,3.6295546,84.09,84.047,12.8214377]
[1770729504206,2.06977768,84.117,84.047,12.8214377]
[1770729504406,3.6295546,84.09,84.047,12.8214377]
[1770729504710,3.6295546,84.09,84.048,10.718]
[1770729504910,3.6295546,84.09,84.049,12.8214377]
[1770729505205,10.7104,84.108,84.059,12.8214377]
[1770729505505,3.6295546,84.11,84.002,166.8143]
[1770729505506,3.6295546,84.12,84.061,12.8214377]
[1770729505906,3.6295546,84.12,84.073,12.76743622]
[1770729506304,35.73,84.145,84.073,12.76743622]
[1770729506505,2.06921156,84.147,84.101,12.76743622]
[1770729506700,10.7047,84.153,84.101,12.76743622]
[1770729506701,3.6295546,84.14,84.101,12.76743622]
[1770729507004,3.6295546,84.13,84.101,12.76743622]
[1770729507203,2.06871339,84.167,84.101,12.76743622]
[1770729507408,3.6295546,84.13,84.081,12.76743622]
[1770729507809,3.6295546,84.11,84.083,12.67439882]
[1770729508000,3.6295546,84.11,84.069,12.67439882]
[1770729508400,3.6295546,84.11,84.07,12.67439882]
[1770729508913,3.6295546,84.09,84.055,12.67439882]
[1770729509113,3.6295546,84.08,84.055,12.67439882]
[1770729509317,3.6295546,84.07,84.039,12.67439882]
[1770729510215,166.5357,84.144,84.022,12.68854253]
[1770729510216,3.6295546,84.06,84.022,12.68854253]
[1770729510418,3.6295546,84.06,83.954,14.73084949]
[1770729510419,3.6295546,84.04,83.991,12.68854253]
[1770729510620,3.6295546,84.03,83.991,12.68854253]
[1770729511008,3.6295546,84.04,83.991,12.68854253]
[1770729511320,3.6295546,84.05,83.991,12.68854253]
[1770729511614,3.6295546,84.04,83.991,12.68854253]
[1770729511813,3.6295546,84.04,83.998,12.74703335]
[1770729514109,3.6295546,84.05,84.001,12.73364595]
[1770729514309,3.6295546,84.06,84.001,12.73364595]
[1770729514506,3.6295546,84.05,84.001,12.73364595]
[1770729515107,3.6295546,84.04,84.004,12.73364595]
[1770729515312,3.6295546,84.03,84.004,12.73364595]
[1770729516216,3.6295546,84.05,84.004,12.73364595]
[1770729516416,3.6295546,84.04,84.004,12.73364595]
[1770729517616,3.6295546,84.03,84.004,12.73364595]
[1770729517914,3.6295546,84.02,83.986,12.65717961]
[1770729518116,94.96,84.067,83.971,12.65717961]
[1770729518117,3.6295546,84.01,83.971,12.65717961]
[1770729518309,3.6295546,83.99,83.971,12.65717961]
[1770729518515,3.6295546,83.99,83.941,12.65717961]
[1770729518716,3.6295546,83.99,83.947,12.65717961]
[1770729520219,3.6295546,83.97,83.936,10.7322]
[1770729521021,9.73579585,83.99,83.936,10.7322]
[1770729521218,10.7271,83.977,83.932,12.67776616]
[1770729522012,10.7282,83.968,83.932,12.67776616]
[1770729522215,57.1694,84.035,83.932,12.67776616]
[1770729522216,9.73579585,84.0,83.932,12.67776616]
[1770729522410,10.7251,83.993,83.944,12.51767163]
[1770729522714,9.73579585,84.02,83.944,12.51767163]
[1770729523120,10.7224,84.014,83.96,12.51767163]
[1770729523422,9.73579585,84.02,83.96,12.51767163]
[1770729523719,10.723,84.009,83.96,12.51767163]
[1770729524715,10.7218,84.019,83.965,12.53880351]
[1770729525118,9.73579585,84.04,83.965,12.53880351]
[1770729526529,9.73579585,84.04,83.966,10.7283]
[1770729526728,9.73579585,84.04,83.967,12.54716091]
[1770729527029,10.7225,84.013,83.967,12.54716091]
[1770729527831,9.73579585,84.06,83.968,12.52355362]
[1770729528023,95.0,84.061,83.968,12.52355362]
[1770729528232,465.31135043,84.09,83.991,12.52355362]
[1770729528233,10.7177,84.051,83.991,12.52355362]
[1770729528434,9.73579585,84.08,83.991,12.52355362]
[1770729528834,10.7197,84.035,83.991,12.52355362]
[1770729529140,9.73579585,84.06,83.991,12.52355362]
[1770729530028,10.7185,84.044,83.991,12.52355362]
[1770729530829,10.7195,84.036,83.991,12.52355362]
[1770729531031,9.73579585,84.04,83.976,12.35731626]
[1770729531633,95.0,84.057,83.976,12.35731626]
[1770729532139,10.7194,84.037,83.987,12.3530837]
[1770729532334,95.0,84.057,83.987,12.3530837]
[1770729532635,11.07170246,84.158,84.05,166.7198]
[1770729532837,39.72139634,84.209,84.11,9.73579585]
[1770729533026,39.72139634,84.193,84.109,10.7101]
[1770729533338,39.72139634,84.193,84.13,9.73579585]
[1770729534734,50.42099634,84.193,84.13,9.73579585]
[1770729534934,50.42099634,84.193,84.119,10.7088]
[1770729534935,50.42099634,84.193,84.14,9.6815414]
[1770729535337,39.72139634,84.193,84.119,10.7088]
[1770729535539,39.72139634,84.193,84.13,9.6815414]
[1770729536027,39.57638773,84.178,84.103,10.7109]
[1770729536229,39.57638773,84.178,84.064,235.70687148]
[1770729536230,39.57638773,84.178,84.11,9.6815414]
[1770729536830,39.57638773,84.161,84.11,9.6815414]
[1770729537725,10.7041,84.157,84.11,9.6815414]
[1770729538336,50.1854135,84.157,84.11,9.6815414]
[1770729538741,39.4813135,84.157,84.11,9.6815414]
[1770729540736,39.4813135,84.157,84.09,9.6815414]
[1770729541042,39.4813135,84.157,84.11,9.6815414]
[1770729541239,37.41269849,84.157,84.11,9.6815414]
[1770729541433,62.0,84.18,84.11,9.6815414]
[1770729542541,165.94,84.179,84.11,9.6815414]
[1770729542936,62.0,84.18,84.064,235.70687148]
[1770729542937,62.0,84.18,84.065,166.6896]
[1770729543141,62.0,84.18,84.12,9.6815414]
[1770729543142,38.41072336,84.179,84.12,9.6815414]
[1770729544746,38.41072336,84.179,84.11,10.71]
[1770729545136,38.41072336,84.179,84.1,9.6815414]
[1770729545542,38.37394853,84.177,84.1,9.6815414]
[1770729546343,38.37394853,84.175,84.1,9.6815414]
[1770729546742,38.37394853,84.17,84.096,10.7118]
[1770729547341,97.73,84.18,84.096,10.7118]
[1770729547342,38.37394853,84.168,84.096,10.7118]
[1770729547743,38.38312595,84.166,84.096,10.7118]
[1770729547940,38.38312595,84.166,84.064,235.70687148]
[1770729547941,38.38312595,84.166,84.081,10.7137]
[1770729548341,38.38312595,84.164,84.081,10.7137]
[1770729548950,38.38312595,84.159,84.096,10.7118]
[1770729549848,38.38312595,84.159,84.09,9.6815414]
[1770729549849,38.38312595,84.159,84.106,10.7105]
[1770729551542,62.0,84.15,84.106,10.7105]
[1770729553046,62.0,84.15,84.115,10.7094]
[1770729553250,38.38312595,84.159,84.11,9.6815414]
[1770729555046,38.38312595,84.159,84.127,10.7078]
[1770729555950,38.38312595,84.159,84.11,9.6815414]
[1770729558855,38.38312595,84.159,84.131,10.7073]
[1770729559249,62.0,84.15,84.131,10.7073]
[1770729560557,62.0,84.15,84.11,9.6815414]
[1770729561564,38.38312595,84.159,84.13,10.7075]
[1770729562158,165.88,84.19,84.158,10.7039]
[1770729562346,165.88,84.19,84.082,120.02]
[1770729562347,167.60804953,84.197,84.089,119.76]
[1770729562553,62.0,84.18,84.1,9.6815414]
[1770729563055,72.7012,84.18,84.1,9.6815414]
[1770729564153,18.85365255,84.176,84.123,10.7083]
[1770729564658,18.85365255,84.176,84.1,9.6815414]
[1770729565750,18.95516238,84.173,84.122,10.7084]
[1770729567055,18.95516238,84.17,84.122,10.7084]
[1770729567250,18.95516238,84.17,84.1,9.6815414]
[1770729567456,18.95516238,84.17,84.129,10.7076]
[1770729573567,18.95516238,84.17,84.135,10.7068]
[1770729574557,18.9889105,84.169,84.135,10.7068]
[1770729579464,19.04650167,84.167,84.135,10.7068]
[1770729580364,19.04392969,84.165,84.135,10.7068]
[1770729582379,19.052024,84.163,84.135,10.7068]
[1770729583076,19.052024,84.162,84.13,3.61688649]
[1770729584770,171.9,84.161,84.13,3.61688649]
[1770729584970,190.97349077,84.161,84.13,3.61688649]
[1770729585276,19.07349077,84.16,84.129,10.7077]
[1770729585570,19.07349077,84.158,84.12,3.61688649]
[1770729585873,19.07349077,84.158,84.119,10.7088]
[1770729588073,19.08597676,84.147,84.1,3.61688649]
[1770729588277,19.08597676,84.147,84.041,29.47985517]
[1770729588278,19.08597676,84.133,84.07,3.61688649]
[1770729588482,19.08597676,84.119,84.06,3.61688649]
[1770729588782,19.08597676,84.119,84.05,3.61688649]
[1770729588987,19.08597676,84.119,84.06,3.61688649]
[1770729589280,172.7,84.118,84.06,3.61688649]
[1770729589481,19.08597676,84.117,84.06,3.61688649]
[1770729589681,19.03924699,84.109,84.063,10.716]
[1770729590180,19.03924699,84.107,84.063,10.716]
[1770729591274,19.03959618,84.099,84.047,10.718]
[1770729591480,3.61688649,84.09,84.03,3.61688649]
[1770729591684,19.0067632,84.089,84.04,3.61688649]
[1770729592382,62.0,84.1,84.056,10.7169]
[1770729592587,157.94,84.099,84.06,3.61688649]
[1770729593491,62.0,84.1,84.07,3.61688649]
[1770729593691,62.0,84.1,84.061,10.7163]
[1770729596085,19.07855774,84.099,84.053,10.7173]
[1770729599193,19.07855774,84.099,84.06,10.7164]
[1770729600196,18.93212861,84.097,84.01,9.70438313]
[1770729600393,18.93212861,84.097,84.03,9.70438313]
[1770729600590,18.93212861,84.097,84.01,9.70438313]
[1770729600888,18.93212861,84.097,84.012,21.445]
[1770729601281,18.93212861,84.095,84.012,21.445]
[1770729601695,18.93212861,84.095,84.046,10.7182]
[1770729602091,18.93212861,84.095,84.012,21.445]
[1770729602297,18.97912623,84.093,84.012,21.445]
[1770729603798,18.99829159,84.085,84.038,10.7192]
[1770729604398,99.12,84.084,84.045,10.7183]
[1770729604595,118.11829159,84.084,84.045,10.7183]
[1770729604788,62.0,84.1,84.012,21.445]
[1770729604997,18.99829159,84.086,84.051,10.7175]
[1770729611796,18.99900367,84.097,84.063,10.716]
[1770729621495,18.99900367,84.097,84.069,10.7152]
[1770729626107,62.0,84.1,84.068,10.7153]
[1770729626305,62.0,84.1,84.009,166.8018]
[1770729626306,62.0,84.1,84.07,3.62324334]
[1770729627815,62.0,84.1,84.08,10.7138]
[1770729628013,62.0,84.1,84.06,3.62324334]
[1770729629108,62.0,84.1,84.078,10.7141]
[1770729631916,62.0,84.1,84.06,3.62324334]
[1770729631917,62.0,84.1,84.084,10.7133]
[1770729632616,19.12549934,84.11,84.07,3.62324334]
[1770729633016,11.09081791,84.151,84.026,94.92]
[1770729633017,19.09982459,84.123,84.026,116.67727828]
[1770729633214,19.09982459,84.134,84.071,21.4301]
[1770729633408,11.09081791,84.173,84.029,35.73]
[1770729633409,13.74527459,84.129,84.07,3.62324334]
[1770729633618,13.72672472,84.119,84.07,3.62324334]
[1770729634724,13.72672472,84.119,84.088,10.7128]
[1770729638021,13.72510392,84.118,84.078,10.7141]
[1770729639223,65.62324334,84.12,84.078,10.7141]
[1770729639224,13.72510392,84.117,84.078,10.7141]
[1770729639821,185.5,84.116,84.078,10.7141]
[1770729640028,13.69589123,84.115,84.078,10.7141]
[1770729640827,13.69589123,84.109,84.078,10.7141]
[1770729641630,185.96,84.115,84.084,10.7133]
[1770729641929,185.96,84.115,84.08,3.62324334]
[1770729642127,62.0,84.12,84.08,3.62324334]
[1770729642328,62.0,84.12,84.096,10.7117]
[1770729644030,62.0,84.12,84.089,10.7126]
[1770729644430,62.0,84.12,84.08,3.62324334]
[1770729645833,3.62324334,84.09,84.04,3.62324334]
[1770729646133,13.65214294,84.079,84.03,3.62324334]
[1770729646334,187.66,84.086,84.04,3.62324334]
[1770729646533,13.65214294,84.091,84.05,3.62324334]
[1770729647333,187.66,84.103,84.06,3.62324334]
[1770729647521,65.62324334,84.12,84.06,3.62324334]
[1770729647723,187.94,84.119,84.06,3.62324334]
[1770729648121,187.94,84.119,84.081,10.7137]
[1770729648322,62.0,84.12,84.081,10.7137]
[1770729649321,62.0,84.12,84.07,3.62324334]
[1770729649322,62.0,84.12,84.089,10.7127]
[1770729649833,62.0,84.12,84.08,10.7138]
[1770729650932,65.62324334,84.12,84.08,10.7138]
[1770729651138,6.66023592,84.119,84.08,10.7138]
[1770729652732,6.66023592,84.119,84.087,10.7129]
[1770729653633,62.0,84.12,84.09,3.62324334]
[1770729653932,62.0,84.12,84.08,3.62324334]
[1770729654840,62.0,84.12,84.092,10.7124]
[1770729655439,6.69551028,84.119,84.085,10.7132]
[1770729657444,6.69551028,84.119,84.091,10.7124]
[1770729660349,6.69551028,84.119,84.097,10.7116]
[1770729660648,6.62137413,84.143,84.1,3.62044936]
[1770729660846,6.62137413,84.143,84.108,10.7103]
[1770729661436,62.0,84.13,84.108,10.7103]
[1770729661640,6.6033123,84.119,84.06,3.61933225]
[1770729661946,6.6033123,84.109,84.06,3.61933225]
[1770729662744,6.6033123,84.109,84.085,10.7132]
[1770729666652,6.65932142,84.126,84.091,10.7124]
[1770729666853,6.65932142,84.129,84.091,10.7124]
[1770729668549,6.70471695,84.119,84.091,10.7124]
[1770729671067,65.61933225,84.13,84.097,10.7116]
[1770729671260,72.3388843,84.13,84.08,3.61933225]
[1770729671660,3.61933225,84.12,84.07,3.61933225]
[1770729671861,6.71807624,84.119,84.07,3.61933225]
[1770729673869,6.71807624,84.119,84.097,10.7116]
[1770729676872,6.71807624,84.119,84.058,21.4332]
[1770729677170,6.71807624,84.119,84.07,3.61933225]
[1770729677373,6.69429222,84.129,84.07,3.61933225]
[1770729677768,6.69429222,84.129,84.08,3.61933225]
[1770729678772,6.69429222,84.129,84.093,10.7121]
[1770729682274,6.7654536,84.119,84.093,10.7121]
[1770729682476,6.7654536,84.119,84.093,10.2694]
[1770729683478,6.7654536,84.119,84.098,10.7115]
[1770729683679,3.61933225,84.11,84.06,3.61933225]
[1770729684380,6.66762174,84.089,84.035,21.75727828]
[1770729684571,6.66762174,84.079,84.02,3.61933225]
[1770729684975,3.61933225,84.07,84.02,3.61933225]
[1770729685578,6.69194472,84.069,84.01,3.61933225]
[1770729686080,6.69194472,84.069,84.02,3.61933225]
[1770729686682,6.69194472,84.069,84.042,10.7187]
[1770729687474,6.69194472,84.069,84.02,3.61933225]
[1770729687674,6.71797005,84.059,84.032,10.72]
[1770729688278,3.61933225,84.05,84.032,10.72]
[1770729688579,6.71797005,84.049,84.024,10.721]
[1770729688780,3.225e-05,84.04,84.024,10.721]
[1770729688985,6.71797005,84.049,84.024,10.721]
[1770729692785,62.0,84.04,84.024,10.721]
[1770729693483,6.70210955,84.061,84.024,10.721]
[1770729693686,6.6775103,84.059,84.024,10.721]
[1770729694394,62.0,84.05,84.016,10.722]
[1770729695292,65.61933225,84.05,84.016,10.722]
[1770729697489,65.61933225,84.05,84.024,10.721]
[1770729698191,62.0,84.05,84.024,10.721]
[1770729700488,65.61933225,84.05,84.024,10.721]
[1770729700694,6.74792965,84.049,84.024,10.721]
[1770729700896,6.74792965,84.039,84.013,10.7224]
[1770729702293,6.75206537,84.029,83.993,3.88010974]
[1770729702798,6.75206537,84.029,84.013,10.7224]
[1770729702996,3.61933225,84.04,84.013,10.7224]
[1770729703596,3.99485567,84.044,84.013,10.7224]
[1770729706595,65.61933225,84.05,84.019,10.7216]
[1770729706794,62.0,84.05,84.02,3.88010974]
[1770729707196,65.61933225,84.05,84.02,3.88010974]
[1770729707396,65.61933225,84.05,84.0,3.61933225]
[1770729707699,65.61933225,84.05,84.006,3.88010974]
[1770729708704,65.61933225,84.05,84.008,3.88010974]
[1770729709607,10.7181,84.048,84.008,3.88010974]
[1770729711001,14.74598564,84.048,84.008,3.88010974]
[1770729711804,4.02788564,84.044,84.004,132.2]
[1770729711998,4.02788564,84.029,83.98,3.61933225]
[1770729712303,4.02788564,84.029,83.982,4.03947291]
[1770729712801,4.02788564,84.029,83.985,4.03947291]
[1770729713705,10.7213,84.023,83.985,4.03947291]
[1770729714802,10.7213,84.023,83.98,3.61933225]
[1770729714803,10.7225,84.013,83.98,4.03947291]
[1770729715596,4.02788564,84.022,83.98,4.03947291]
[1770729716709,3.62977475,84.01,83.972,4.03947291]
[1770729716911,4.02788564,84.018,83.972,4.03947291]
[1770729717407,4.02788564,84.018,83.974,4.03947291]
[1770729717712,4.02788564,84.029,83.981,4.03947291]
[1770729717910,4.02788564,84.029,83.991,4.03947291]
[1770729718110,3.62977475,84.04,83.997,14.76397291]
[1770729718308,3.62977475,84.04,83.998,4.03947291]
[1770729719012,3.62977475,84.04,84.003,10.7237]
[1770729719913,3.62977475,84.04,83.998,4.03947291]
[1770729721113,10.7179,84.049,84.007,4.03947291]
[1770729721417,62.0,84.05,84.011,4.03947291]
[1770729722416,7.65766039,84.04,84.002,10.7238]
[1770729722618,4.02788564,84.04,84.002,10.7238]
[1770729725118,4.02788564,84.04,84.003,4.03947291]
[1770729725917,62.0,84.05,84.011,4.03947291]
[1770729726717,62.0,84.05,84.014,4.03947291]
[1770729726917,62.0,84.05,84.021,4.03947291]
[1770729729914,62.0,84.05,84.027,4.03947291]
[1770729730218,32.28832701,84.079,84.03,3.62977475]
[1770729730818,32.28832701,84.079,84.038,10.7192]
[1770729731112,32.28832701,84.069,84.038,10.7192]
[1770729732013,3.62977475,84.06,84.027,10.7206]
[1770729732218,32.29761594,84.059,84.027,10.7206]
[1770729734519,62.0,84.05,84.027,10.7206]
[1770729736020,32.33168502,84.073,84.03,3.62977475]
[1770729737017,47.0,84.06,84.03,3.62977475]
[1770729737823,47.0,84.06,83.994,21.4497]
[1770729737824,47.0,84.06,84.039,10.719]
[1770729739721,32.33168502,84.073,84.047,10.7181]
[1770729741529,8.502e-05,84.073,84.061,10.7162]
[1770729741822,8.502e-05,84.073,84.04,3.62977475]
[1770729744130,8.502e-05,84.073,84.059,10.7165]
[1770729745236,8.502e-05,84.073,84.03,3.62977475]
[1770729746138,8.502e-05,84.073,84.042,10.7186]
[1770729746539,3.62977475,84.09,84.04,3.62977475]
[1770729746839,3.62977475,84.09,84.041,10.7188]
[1770729746840,5.39763209,84.089,84.041,10.7188]
[1770729747138,5.39763209,84.079,84.041,10.7188]
[1770729747337,5.39763209,84.079,84.007,21.4462]
[1770729747338,5.39763209,84.079,84.047,10.7181]
[1770729747841,5.39763209,84.079,84.02,3.62977475]
[1770729748039,5.39763209,84.079,84.03,3.62977475]
[1770729748740,5.39763209,84.079,84.036,10.7194]
[1770729752641,5.35819859,84.077,84.036,10.7194]
[1770729755930,5.35819859,84.077,84.042,10.7187]
[1770729756137,5.35819859,84.077,84.04,3.62977475]
[1770729757738,5.35075503,84.089,84.04,3.62977475]
[1770729758143,5.35075503,84.089,84.009,21.4458]
[1770729758440,5.35075503,84.079,84.044,10.7184]
[1770729762442,5.35075503,84.079,84.05,10.7177]
[1770729766347,5.35075503,84.079,84.055,10.717]
[1770729767045,5.35075503,84.079,84.04,3.62977475]
[1770729768148,3.62977475,84.09,84.04,3.62977475]
[1770729768343,5.38733849,84.091,84.04,3.62977475]
[1770729768850,5.38733849,84.091,84.057,10.7168]
[1770729769542,5.37577946,84.102,84.07,10.7151]
[1770729770253,5.37577946,84.102,84.063,10.716]
[1770729770641,14.50658631,84.148,84.025,21.4417]
[1770729770642,5.43863411,84.114,84.072,10.7149]
[1770729772850,5.43863411,84.114,84.079,10.714]
[1770729773055,5.43863411,84.114,84.043,21.4372]
[1770729773056,52.0,84.12,84.08,3.62977475]
[1770729774255,52.0,84.12,84.1,3.62977475]
[1770729774747,5.34160516,84.139,84.1,3.62977475]
[1770729775555,5.39907377,84.153,84.11,3.61786944]
[1770729776655,5.39907377,84.153,84.11,14.32786944]
[1770729776855,5.39907377,84.153,84.11,14.32758364]
[1770729777043,5.40239475,84.169,84.12,3.61758364]
[1770729777245,5.40239475,84.169,84.129,10.7077]
[1770729777450,5.40239475,84.169,84.13,3.61758364]
[1770729777848,5.40239475,84.169,84.134,10.7069]
[1770729780355,5.40239475,84.169,84.081,14.79874976]
[1770729780652,5.39444572,84.149,84.1,3.61758364]
[1770729780850,5.39444572,84.129,84.093,10.7122]
[1770729781251,5.39444572,84.129,84.08,3.61758364]
[1770729781449,5.39444572,84.129,84.092,10.7123]
[1770729782558,5.39444572,84.129,84.079,10.7139]
[1770729783058,5.36515611,84.119,84.07,464.21464837]
[1770729783259,3.61758364,84.11,84.07,460.59706473]
[1770729783660,3.61758364,84.11,84.071,10.715]
[1770729784757,5.36515611,84.119,84.071,10.715]
[1770729787857,5.36515611,84.119,84.078,10.7141]
[1770729788062,3.61758364,84.13,84.08,3.61758364]
[1770729788251,3.61758364,84.14,84.09,3.61758364]
[1770729788450,5.33039077,84.146,84.1,3.61758364]
[1770729789461,5.33039077,84.146,84.11,14.32758364]
[1770729789863,5.33039077,84.146,84.11,3.61758364]
[1770729790761,5.33039077,84.146,84.117,10.7091]
[1770729793061,5.33039077,84.146,84.108,10.7103]
[1770729795062,5.37436073,84.139,84.108,10.7103]
[1770729795260,5.37436073,84.149,84.108,10.7103]
[1770729797760,10.7052,84.148,84.099,10.7114]
[1770729798063,5.35427671,84.147,84.1,3.61758364]
[1770729798863,10.7056,84.146,84.1,3.61758364]
[1770729799265,10.7056,84.146,84.102,10.711]
[1770729802875,10.7056,84.146,84.108,10.7102]
[1770729803271,10.7063,84.14,84.1,3.61758364]
[1770729803572,5.4130935,84.139,84.101,10.7111]
[1770729804678,5.42111143,84.153,84.11,3.61758364]
[1770729805681,5.42111143,84.153,84.117,10.7092]
[1770729806373,5.42111143,84.153,84.09,134.92]
[1770729806374,9.03869507,84.15,84.09,134.92]
[1770729806574,5.42111143,84.149,84.1,3.61758364]
[1770729806980,5.42111143,84.149,84.123,10.7084]
[1770729807174,3.61758364,84.16,84.123,10.7084]
[1770729807382,5.41497776,84.159,84.123,10.7084]
[1770729809575,5.41497776,84.159,84.116,10.7093]
[1770729811676,3.61758364,84.17,84.12,3.61758364]
[1770729811881,5.36677442,84.169,84.12,3.61758364]
[1770729812685,5.36677442,84.169,84.129,10.7075]
[1770729813185,5.36677442,84.169,84.12,3.61758364]
[1770729813884,5.3361678,84.167,84.122,10.7085]
[1770729815580,5.3361678,84.167,84.098,100.26]
[1770729815581,3.61758364,84.16,84.091,14.79874976]
[1770729815784,3.61758364,84.16,84.071,21.43]
[1770729815785,5.37179514,84.159,84.1,3.61758364]
[1770729816085,5.37179514,84.159,84.11,3.61758364]
[1770729816788,5.37179514,84.159,84.114,10.7095]
[1770729817782,5.37179514,84.159,84.126,10.7079]
[1770729817982,5.2982602,84.169,84.126,10.7079]
[1770729818386,5.2982602,84.169,84.131,10.7073]
[1770729821997,5.2982602,84.169,84.124,10.7082]
[1770729825689,5.2982602,84.169,84.129,10.7076]
[1770729826192,10.7027,84.168,84.129,10.7076]
[1770729827395,10.7016,84.177,84.136,10.7067]
[1770729827991,10.7023,84.172,84.136,10.7067]
[1770729828295,5.29413839,84.171,84.136,10.7067]
[1770729829098,5.26687374,84.164,84.122,10.7085]
[1770729832098,5.26687374,84.164,84.129,10.7076]
[1770729832589,5.3280511,84.178,84.13,3.61758364]
[1770729834703,5.3280511,84.178,84.14,10.7061]
[1770729835202,5.33905479,84.169,84.12,3.61758364]
[1770729835400,5.33905479,84.169,84.13,3.61758364]
[1770729837005,5.33905479,84.169,84.127,10.7078]
[1770729837202,5.33905479,84.169,84.09,21.4253]
[1770729837203,5.39025367,84.158,84.096,14.79874976]
[1770729837402,5.39025367,84.158,84.1,3.61758364]
[1770729837804,5.39025367,84.146,84.102,10.711]
[1770729838014,5.39025367,84.158,84.12,3.61758364]
[1770729838907,5.39025367,84.158,84.12,3.61761928]
[1770729839107,5.39025367,84.158,84.121,10.7086]
[1770729841201,5.39025367,84.158,84.127,10.7078]
[1770729841407,5.39025367,84.158,84.11,3.61761928]
[1770729842409,5.36586494,84.154,84.11,3.61761928]
[1770729842603,3.61761928,84.15,84.086,14.79874976]
[1770729842804,5.37795367,84.149,84.09,3.61761928]
[1770729843010,5.37795367,84.149,84.074,94.86]
[1770729843011,5.37795367,84.149,84.111,10.7099]
[1770729843704,5.37795367,84.149,84.12,3.61761928]
[1770729844306,5.37795367,84.161,84.12,3.61761928]
[1770729844515,5.37795367,84.161,84.13,3.61761928]
[1770729844813,10.7037,84.16,84.13,3.61761928]
[1770729846915,16.06271826,84.16,84.13,3.61761928]
[1770729847615,16.06271826,84.16,84.12,3.61761928]
[1770729849519,10.7044,84.155,84.12,3.61761928]
[1770729850411,10.7044,84.155,84.112,10.7098]
[1770729850619,5.38408213,84.152,84.112,10.7098]
[1770729850819,5.38408213,84.152,84.12,3.61761928]
[1770729854823,10.7052,84.149,84.12,3.61761928]
[1770729855824,5.38408213,84.152,84.12,3.61761928]
[1770729857224,10.7044,84.155,84.12,3.61761928]
[1770729857426,5.31847922,84.163,84.13,3.61761928]
[1770729858530,5.31847922,84.176,84.15,3.61761928]
[1770729858921,10.7005,84.185,84.15,3.61761928]
[1770729859121,5.31928521,84.199,84.16,3.61761928]
[1770729859327,5.31928521,84.199,84.15,3.61761928]
[1770729859622,10.7005,84.186,84.16,3.61761928]
[1770729859823,5.31928521,84.185,84.14,3.61761928]
[1770729860026,5.31928521,84.197,84.151,10.7048]
[1770729860221,5.31928521,84.213,84.17,3.61761928]
[1770729860629,5.31928521,84.213,84.16,3.61761928]
[1770729860823,5.39345458,84.208,84.16,3.61761928]
[1770729862730,10.6984,84.203,84.16,3.61761928]
[1770729862925,5.39709766,84.202,84.17,3.61761928]
[1770729863131,5.39709766,84.202,84.16,3.61761928]
[1770729863329,5.39709766,84.202,84.17,3.61761928]
[1770729865434,5.39709766,84.202,84.154,10.7044]
[1770729865435,5.39709766,84.202,84.16,3.61761928]
[1770729866935,10.6972,84.212,84.17,3.61761928]
[1770729867137,5.37355677,84.211,84.17,3.61761928]
[1770729868037,5.37355677,84.211,84.161,10.7035]
[1770729868640,5.39568041,84.207,84.161,10.7035]
[1770729869838,5.39568041,84.205,84.161,10.7035]
[1770729872141,5.39568041,84.205,84.17,3.61761928]
[1770729873741,5.38400371,84.199,84.15,10.705]
[1770729873949,5.38400371,84.198,84.15,14.32261928]
[1770729874338,5.38400371,84.196,84.15,14.32261928]
[1770729874843,16.09961052,84.19,84.15,14.32261928]
[1770729875038,5.39961052,84.189,84.15,14.32261928]
[1770729876541,5.39961052,84.189,84.16,3.61761928]
[1770729878134,5.39961052,84.189,84.15,10.705]
[1770729878339,5.39961052,84.189,84.15,14.32261928]
[1770729879635,208.8991,84.197,84.156,10.7042]
[1770729880039,5.38973054,84.194,84.156,10.7042]
[1770729881644,5.38973054,84.194,84.15,3.61761928]
[1770729882446,5.38973054,84.194,84.151,10.7047]
[1770729882646,5.38973054,84.194,84.15,3.61761928]
[1770729883646,5.38973054,84.194,84.157,10.704]
[1770729885748,5.40318758,84.202,84.17,3.61761928]
[1770729885949,5.40318758,84.202,84.16,3.61761928]
[1770729886845,5.40318758,84.202,84.163,10.7032]
[1770729887753,5.40318758,84.202,84.16,3.61761928]
[1770729887754,5.40318758,84.202,84.17,10.7024]
[1770729889151,5.40433457,84.201,84.16,3.61761928]